Workbook

Sheet 様式選択
C2: キャリアアップ助成金正社員化コース
C3: 賃金上昇要件確認ツール 様式選択
B4: ①はじめに、「コンテンツの有効化」をクリックしてください
B7: ②下記のボタンをクリックしていただくと、該当のシートにジャンプします。

Sheet No1
B1: キャリアアップ助成金正社員化コース 賃金上昇要件確認ツール （月給又は変形労働時間制で、かつ支給形態及び所定労働時間が変わらない場合）
A2: 名 前 （雇用保険被保険者番号）
A4: 転換または直接雇用前６か月（A）
A5: 賃金算定期間 | F5: 月 | I5: 日 | M5: 月 | P5: 日 | T5: 月 | W5: 日 | AA5: 月 | AD5: 日 | AH5: 月 | AK5: 日 | AO5: 月 | AR5: 日
C6: ～ | F6: 月 | I6: 日 | J6: ～ | M6: 月 | P6: 日 | Q6: ～ | T6: 月 | W6: 日 | X6: ～ | AA6: 月 | AD6: 日 | AE6: ～ | AH6: 月 | AK6: 日 | AL6: ～ | AO6: 月 | AR6: 日
A7: 基本賃金
A8: 手 当 | B8: 手当
B9: 手当
B10: 手当
B11: 手当
B12: 手当
B13: 手当
B14: 手当
B15: 手当
B16: 手当
A17: 賞 与
A18: 合計 | C18: =SUM(C7:I16) -> 0 | J18: =SUM(J7:P16) -> 0 | Q18: =SUM(Q7:W16) -> 0 | X18: =SUM(X7:AD16) -> 0 | AE18: =SUM(AE7:AK16) -> 0 | AL18: =SUM(AL7:AR16) -> 0 | AS18: =SUM(C18:AR18) -> 0
A19: 合 計 | C19: =SUM(C7:I17) -> 0 | J19: =SUM(J7:P17) -> 0 | Q19: =SUM(Q7:W17) -> 0 | X19: =SUM(X7:AD17) -> 0 | AE19: =SUM(AE7:AK17) -> 0 | AL19: =SUM(AL7:AR17) -> 0 | AS19: =SUM(C19:AR19) -> 0
A22: 転換または直接雇用後６か月（B）
A23: 賃金算定期間 | F23: 月 | I23: 日 | M23: 月 | P23: 日 | T23: 月 | W23: 日 | AA23: 月 | AD23: 日 | AH23: 月 | AK23: 日 | AO23: 月 | AR23: 日
C24: ～ | F24: 月 | I24: 日 | J24: ～ | M24: 月 | P24: 日 | Q24: ～ | T24: 月 | W24: 日 | X24: ～ | AA24: 月 | AD24: 日 | AE24: ～ | AH24: 月 | AK24: 日 | AL24: ～ | AO24: 月 | AR24: 日
A25: 基本賃金
A26: 手 当 | B26: 手当
B27: 手当
B28: 手当
B29: 手当
B30: 手当
B31: 手当
B32: 手当
B33: 手当
B34: 手当
A35: 賞 与
A36: 合計 | C36: =SUM(C25:I34) -> 0 | J36: =SUM(J25:P34) -> 0 | Q36: =SUM(Q25:W34) -> 0 | X36: =SUM(X25:AD34) -> 0 | AE36: =SUM(AE25:AK34) -> 0 | AL36: =SUM(AL25:AR34) -> 0 | AS36: =SUM(C36:AR36) -> 0
A37: 合 計 | C37: =SUM(C25:I35) -> 0 | J37: =SUM(J25:P35) -> 0 | Q37: =SUM(Q25:W35) -> 0 | X37: =SUM(X25:AD35) -> 0 | AE37: =SUM(AE25:AK35) -> 0 | AL37: =SUM(AL25:AR35) -> 0 | AS37: =SUM(C37:AR37) -> 0
A39: （B）の賃金算定期間外で、支給申請時点で支給が確定している賞与（C）
A41: 支給日 | C41: 令和○年○月○日
A42: 金額
A44: 転換前後で基本給が低下していないか： | I44: =IF(MIN(SUM(C25:I34),SUM(J25:P34),SUM(Q25:W34),SUM(X25:AD34),SUM(AE25:AK34),SUM(AL25:AR34))>=MAX(SUM(C7:I16),SUM(J7:P16),SUM(Q7:W16),SUM(X7:AD16),SUM(AE7:AK16),SUM(AL7:AR16)),"基本給＋諸手当は低下していない","基本給＋諸手当が低下しているため、支給対象にならない場合があります。") -> 基本給＋諸手当は低下していない
B45: ※ 転換後「基本給＋諸手当」が低下しているまたは増加していない場合は、支給対象にならない場合があります。
J46: （Ｂ） | V46: （Ａ）
AN47: 賃金上昇率
D48: =AS36 -> 0 | R48: － | T48: =AS18 -> 0 | AN48: =IFERROR(INT(((D48)-T48)/C51*100),0) -> 0
AC49: × 100 | AJ49: ＝
C51: =AS18 -> 0
F52: （Ｂ） | M52: （C） | V52: （Ａ）
AN53: 賃金上昇率
C54: =AS37 -> 0 | J54: ＋ | K54: =C42 -> 0 | R54: － | T54: =AS19 -> 0 | AN54: =IFERROR(INT(((C54+K54)-T54)/C57*100),0) -> 0
AC55: × 100 | AJ55: ＝
C57: =AS19 -> 0
Z58: ※小数点以下切捨で３％以上の増額が必要です。

Sheet No1 ※記載例
B1: キャリアアップ助成金正社員化コース 賃金上昇要件確認ツール （月給又は変形労働時間制で、かつ支給形態及び所定労働時間が変わらない場合）
A2: 名 前 （雇用保険被保険者番号） | C2: 厚労 太郎
C3: 1111-111111-1
A4: 転換または直接雇用前６か月（A）
A5: 賃金算定期間 | C5: 10 | D5: 月 | E5: 1 | F5: 日 | J5: 11 | K5: 月 | L5: 1 | M5: 日 | Q5: 12 | R5: 月 | S5: 1 | T5: 日 | X5: 1 | Y5: 月 | Z5: 1 | AA5: 日 | AE5: 2 | AF5: 月 | AG5: 1 | AH5: 日 | AL5: 3 | AM5: 月 | AN5: 1 | AO5: 日
E6: ～ | F6: 10 | G6: 月 | H6: 31 | I6: 日 | L6: ～ | M6: 11 | N6: 月 | O6: 30 | P6: 日 | S6: ～ | T6: 12 | U6: 月 | V6: 31 | W6: 日 | Z6: ～ | AA6: 1 | AB6: 月 | AC6: 31 | AD6: 日 | AG6: ～ | AH6: 2 | AI6: 月 | AJ6: 28 | AK6: 日 | AN6: ～ | AO6: 3 | AP6: 月 | AQ6: 31 | AR6: 日
A7: 基本賃金 | C7: 180000 | J7: 180000 | Q7: 180000 | X7: 180000 | AE7: 180000 | AL7: 180000
A8: 手 当 | B8: 手当 | C8: 5000 | J8: 5000 | Q8: 5000 | X8: 5000 | AE8: 5000 | AL8: 5000
B9: 手当
B10: 手当
B11: 手当
B12: 手当
B13: 手当
B14: 手当
B15: 手当
B16: 手当
A17: 合 計 | C17: =SUM(C7:I16) -> 185000 | J17: =SUM(J7:P16) -> 185000 | Q17: =SUM(Q7:W16) -> 185000 | X17: =SUM(X7:AD16) -> 185000 | AE17: =SUM(AE7:AK16) -> 185000 | AL17: =SUM(AL7:AR16) -> 185000 | AS17: =SUM(C17:AR17) -> 1110000
A20: 転換または直接雇用後６か月（B）
A21: 賃金算定期間 | C21: 4 | D21: 月 | E21: 1 | F21: 日 | J21: 5 | K21: 月 | L21: 1 | M21: 日 | Q21: 6 | R21: 月 | S21: 1 | T21: 日 | X21: 7 | Y21: 月 | Z21: 1 | AA21: 日 | AE21: 8 | AF21: 月 | AG21: 1 | AH21: 日 | AL21: 9 | AM21: 月 | AN21: 1 | AO21: 日
E22: ～ | F22: 4 | G22: 月 | H22: 30 | I22: 日 | L22: ～ | M22: 5 | N22: 月 | O22: 31 | P22: 日 | S22: ～ | T22: 6 | U22: 月 | V22: 30 | W22: 日 | Z22: ～ | AA22: 7 | AB22: 月 | AC22: 31 | AD22: 日 | AG22: ～ | AH22: 8 | AI22: 月 | AJ22: 31 | AK22: 日 | AN22: ～ | AO22: 9 | AP22: 月 | AQ22: 30 | AR22: 日
A23: 基本賃金 | C23: 200000 | J23: 200000 | Q23: 200000 | X23: 200000 | AE23: 200000 | AL23: 200000
A24: 手 当 | B24: 家族手当 | C24: 5000 | J24: 5000 | Q24: 5000 | X24: 5000 | AE24: 5000 | AL24: 5000
B25: 役職手当 | C25: 10000 | J25: 10000 | Q25: 10000 | X25: 10000 | AE25: 10000 | AL25: 10000
B26: 手当
B27: 手当
B28: 手当
B29: 手当
B30: 手当
B31: 手当
B32: 手当
A33: 合 計 | C33: =SUM(C23:I32) -> 215000 | J33: =SUM(J23:P32) -> 215000 | Q33: =SUM(Q23:W32) -> 215000 | X33: =SUM(X23:AD32) -> 215000 | AE33: =SUM(AE23:AK32) -> 215000 | AL33: =SUM(AL23:AR32) -> 215000 | AS33: =SUM(C33:AR33) -> 1290000
A35: ※ 転換後「基本給＋諸手当」が低下しているまたは増加していない場合は、支給対象にならない場合があります。
J37: （Ｂ） | V37: （Ａ）
AN38: 賃金上昇率
D39: =AS33 -> 1290000 | R39: － | T39: =AS17 -> 1110000 | AN39: =IFERROR(INT(((D39)-T39)/C42*100),0) -> 16
AC40: × 100 | AJ40: ＝
C42: =AS17 -> 1110000
Z43: ※小数点以下切捨で３％以上の増額が必要です。

Sheet No2
B1: キャリアアップ助成金正社員化コース 賃金上昇要件確認ツール （通常の計算方法）
A2: 名 前 （雇用保険被保険者番号）
A4: 転換または直接雇用前６か月（A）
A5: 賃金算定期間 | E5: 月 | H5: 日 | I5: ～ | L5: 月 | O5: 日 | P5: ～ | S5: 月 | V5: 日 | W5: ～ | Z5: 月 | AC5: 日 | AD5: ～ | AG5: 月 | AJ5: 日 | AK5: ～ | AN5: 月 | AQ5: 日 | AR5: ～ | AS5: 合 計
E6: 月 | H6: 日 | L6: 月 | O6: 日 | S6: 月 | V6: 日 | Z6: 月 | AC6: 日 | AG6: 月 | AJ6: 日 | AN6: 月 | AQ6: 日
A7: 1月の月平均所定労働時間（※） | AS7: =SUM(C7:AR7) -> 0
A8: 基本賃金 | AS8: =SUM(C8:AR8) -> 0
A9: 手 当 | B9: 手当 | AS9: 0
B10: 手当 | AS10: =SUM(C10:AR10) -> 0
B11: 手当 | AS11: 0
B12: 手当 | AS12: 0
B13: 手当 | AS13: 0
B14: 手当 | AS14: 0
B15: 手当 | AS15: =SUM(C15:AR15) -> 0
B16: 手当 | AS16: 0
B17: 手当 | AS17: 0
B18: 手当 | AS18: 0
A19: 賞 与 | AS19: 0
A20: 合計 | C20: =SUM(C8:I18) -> 0 | J20: =SUM(J8:P18) -> 0 | Q20: =SUM(Q8:W18) -> 0 | X20: =SUM(X8:AD18) -> 0 | AE20: =SUM(AE8:AK18) -> 0 | AL20: =SUM(AL8:AR18) -> 0 | AS20: =SUM(C20:AR20) -> 0
A21: 合 計 | C21: =SUM(C8:I19) -> 0 | J21: =SUM(J8:P19) -> 0 | Q21: =SUM(Q8:W19) -> 0 | X21: =SUM(X8:AD19) -> 0 | AE21: =SUM(AE8:AK19) -> 0 | AL21: =SUM(AL8:AR19) -> 0 | AS21: =SUM(C21:AR21) -> 0
AE23: 転換前1時間あたり賃金→ | AS23: =IFERROR(ROUNDUP(AS20/AS7,0),0) -> 0
AE24: 転換前1時間あたり賃金(賞与含む)→ | AS24: =IFERROR(ROUNDUP(AS21/AS7,0),0) -> 0
A25: 転換または直接雇用後６か月（B）
A26: 賃金算定期間 | E26: 月 | H26: 日 | I26: ～ | L26: 月 | O26: 日 | P26: ～ | S26: 月 | V26: 日 | W26: ～ | Z26: 月 | AC26: 日 | AD26: ～ | AG26: 月 | AJ26: 日 | AK26: ～ | AN26: 月 | AQ26: 日 | AR26: ～ | AS26: 合 計
E27: 月 | H27: 日 | L27: 月 | O27: 日 | S27: 月 | V27: 日 | Z27: 月 | AC27: 日 | AG27: 月 | AJ27: 日 | AN27: 月 | AQ27: 日
A28: 1月の月平均所定労働時間（※） | AS28: =SUM(C28:AR28) -> 0
A29: 基本賃金 | AS29: =SUM(C29:AR29) -> 0
A30: 手 当 | B30: 手当 | AS30: 0
B31: 手当 | AS31: 0
B32: 手当 | AS32: 0
B33: 手当 | AS33: 0
B34: 手当 | AS34: 0
B35: 手当 | AS35: 0
B36: 手当 | AS36: 0
B37: 手当 | AS37: 0
B38: 手当 | AS38: 0
B39: 手当 | AS39: 0
A40: 賞 与 | AS40: 0
A41: 合計 | C41: =SUM(C29:I39) -> 0 | J41: =SUM(J29:P39) -> 0 | Q41: =SUM(Q29:W39) -> 0 | X41: =SUM(X29:AD39) -> 0 | AE41: =SUM(AE29:AK39) -> 0 | AL41: =SUM(AL29:AR39) -> 0 | AS41: =SUM(C41:AR41) -> 0
A42: 合 計 | C42: =SUM(C29:I40) -> 0 | J42: =SUM(J29:P40) -> 0 | Q42: =SUM(Q29:W40) -> 0 | X42: =SUM(X29:AD40) -> 0 | AE42: =SUM(AE29:AK40) -> 0 | AL42: =SUM(AL29:AR40) -> 0 | AS42: =SUM(C42:AR42) -> 0
A43: ※ 時給制または日給制であり、シフト制など月の所定労働時間または所定労働日数がない場合のみ、実労働時間を記載してください。
A44: ※ １年単位の変形労働時間制を適用している場合は、監督署に届け出られた年間カレンダー等により、年単位の休日等を元に月平均の所定労働時間を記載してください。
A45: ※ １か月単位の変形労働時間制を適用している場合は、月単位の勤務シフト表や会社カレンダーにより、月ごとの所定労働時間を記載してください。
A46: ※ 転換後「基本給＋諸手当」が低下しているまたは増加していない場合は、支給対象にならない場合があります。
Y48: 転換後1時間あたり賃金(賞与含む)→ | AL48: =IFERROR(ROUNDUP((AS42+C48)/AS28,0),0) -> 0
Y49: 転換後1時間あたり賃金→ | AL49: =IFERROR(ROUNDUP((AS41)/AS28,0),0) -> 0
A50: 転換前後で基本給が低下していないか： | L50: =IF(PRODUCT(C28:AR28,C7:AR7,C41:AR41,C20:AR20)=0,"基本給、諸手当及び所定労働時間を全て入力してください。",IF(MIN(C41/C28,J41/J28,Q41/Q28,X41/X28,AE41/AE28,AL41/AL28)>=MAX(C20/C7,J20/J7,Q20/Q7,X20/X7,AE20/AE7,AL20/AL7),"基本給＋諸手当は低下していない","基本給＋諸手当が低下しているため、支給対象にならない場合があります。")) -> 基本給、諸手当及び所定労働時間を全て入力してください。
K53: （B） | T53: （A）
AN54: 賃金上昇率
K55: =AL49 -> 0 | R55: － | T55: =AS23 -> 0 | AN55: =IFERROR(INT((K55-T55)/K58*100),0) -> 0
AC56: × 100 | AJ56: ＝
K58: =AS23 -> 0
K60: =AL48 -> 0 | R60: － | T60: =AS24 -> 0 | AN60: =IFERROR(INT((K60-T60)/K63*100),0) -> 0
AC61: × 100 | AJ61: ＝
K63: =AS24 -> 0
AE64: ※小数点以下切捨で３％以上の増額が必要です。

Sheet No2 ※記載例
B1: キャリアアップ助成金正社員化コース 賃金上昇要件確認ツール （通常の計算方法）
A2: 名 前 （雇用保険被保険者番号） | C2: 厚労 太郎
C3: 1111-111111-1
A4: 転換または直接雇用前６か月（A）
A5: 賃金算定期間 | C5: 10 | D5: 月 | E5: 1 | F5: 日 | J5: 11 | K5: 月 | L5: 1 | M5: 日 | Q5: 12 | R5: 月 | S5: 1 | T5: 日 | X5: 1 | Y5: 月 | Z5: 1 | AA5: 日 | AE5: 2 | AF5: 月 | AG5: 1 | AH5: 日 | AL5: 3 | AM5: 月 | AN5: 1 | AO5: 日 | AS5: 合 計
E6: ～ | F6: 10 | G6: 月 | H6: 31 | I6: 日 | L6: ～ | M6: 11 | N6: 月 | O6: 30 | P6: 日 | S6: ～ | T6: 12 | U6: 月 | V6: 31 | W6: 日 | Z6: ～ | AA6: 1 | AB6: 月 | AC6: 31 | AD6: 日 | AG6: ～ | AH6: 2 | AI6: 月 | AJ6: 28 | AK6: 日 | AN6: ～ | AO6: 3 | AP6: 月 | AQ6: 31 | AR6: 日
A7: 1月の月平均所定労働時間（※） | C7: 120 | J7: 120 | Q7: 120 | X7: 120 | AE7: 120 | AL7: 120 | AS7: =SUM(C7:AR7) -> 720
A8: 基本賃金 | C8: 144000 | J8: 144000 | Q8: 144000 | X8: 144000 | AE8: 144000 | AL8: 144000 | AS8: =SUM(C8:AR8) -> 864000
A9: 手 当 | B9: 手当 | AS9: 0
B10: 手当 | AS10: =SUM(C10:AR10) -> 0
B11: 手当 | AS11: 0
B12: 手当 | AS12: 0
B13: 手当 | AS13: 0
B14: 手当 | AS14: 0
B15: 手当 | AS15: =SUM(C15:AR15) -> 0
B16: 手当 | AS16: 0
B17: 手当 | AS17: 0
B18: 手当 | AS18: 0
A19: 合 計 | C19: =SUM(C8:I18) -> 144000 | J19: =SUM(J8:P18) -> 144000 | Q19: =SUM(Q8:W18) -> 144000 | X19: =SUM(X8:AD18) -> 144000 | AE19: =SUM(AE8:AK18) -> 144000 | AL19: =SUM(AL8:AR18) -> 144000 | AS19: =SUM(C19:AR19) -> 864000
AE21: 転換前1時間あたり賃金→ | AS21: =IFERROR(ROUNDUP(AS19/AS7,0),0) -> 1200
A22: 転換または直接雇用後６か月（B）
A23: 賃金算定期間 | C23: 4 | D23: 月 | E23: 1 | F23: 日 | J23: 5 | K23: 月 | L23: 1 | M23: 日 | Q23: 6 | R23: 月 | S23: 1 | T23: 日 | X23: 7 | Y23: 月 | Z23: 1 | AA23: 日 | AE23: 8 | AF23: 月 | AG23: 1 | AH23: 日 | AL23: 9 | AM23: 月 | AN23: 1 | AO23: 日 | AS23: 合 計
E24: ～ | F24: 4 | G24: 月 | H24: 30 | I24: 日 | L24: ～ | M24: 5 | N24: 月 | O24: 31 | P24: 日 | S24: ～ | T24: 6 | U24: 月 | V24: 30 | W24: 日 | Z24: ～ | AA24: 7 | AB24: 月 | AC24: 31 | AD24: 日 | AG24: ～ | AH24: 8 | AI24: 月 | AJ24: 31 | AK24: 日 | AN24: ～ | AO24: 9 | AP24: 月 | AQ24: 30 | AR24: 日
A25: 1月の月平均所定労働時間（※） | C25: 160 | J25: 160 | Q25: 160 | X25: 160 | AE25: 160 | AL25: 160 | AS25: =SUM(C25:AR25) -> 960
A26: 基本賃金 | C26: 240000 | J26: 240000 | Q26: 240000 | X26: 240000 | AE26: 240000 | AL26: 240000 | AS26: =SUM(C26:AR26) -> 1440000
A27: 手 当 | B27: 手当 | AS27: 0
B28: 手当 | AS28: 0
B29: 手当 | AS29: 0
B30: 手当 | AS30: 0
B31: 手当 | AS31: 0
B32: 手当 | AS32: 0
B33: 手当 | AS33: 0
B34: 手当 | AS34: 0
B35: 手当 | AS35: 0
B36: 手当 | AS36: 0
A37: 合 計 | C37: =SUM(C26:I36) -> 240000 | J37: =SUM(J26:P36) -> 240000 | Q37: =SUM(Q26:W36) -> 240000 | X37: =SUM(X26:AD36) -> 240000 | AE37: =SUM(AE26:AK36) -> 240000 | AL37: =SUM(AL26:AR36) -> 240000 | AS37: =SUM(C37:AR37) -> 1440000
A38: ※ 時給制または日給制であり、シフト制など月の所定労働時間または所定労働日数がない場合のみ、実労働時間を記載してください。
A39: ※ １年単位の変形労働時間制を適用している場合は、監督署に届け出られた年間カレンダー等により、年単位の休日等を元に月平均の所定労働時間を記載してください。
A40: ※ １か月単位の変形労働時間制を適用している場合は、月単位の勤務シフト表や会社カレンダーにより、月ごとの所定労働時間を記載してください。
A41: ※ 転換後「基本給＋諸手当」が低下しているまたは増加していない場合は、支給対象にならない場合があります。
AE42: 転換後1時間あたり賃金→ | AS42: =IFERROR(ROUNDUP(AS37/AS25,0),0) -> 1500
K46: （B） | T46: （A）
AN47: 賃金上昇率
K48: =AS42 -> 1500 | R48: － | T48: =AS21 -> 1200 | AN48: =IFERROR(INT((K48-T48)/K51*100),0) -> 25
AC49: × 100 | AJ49: ＝
K51: =AS21 -> 1200
AE53: ※小数点以下切捨で３％以上の増額が必要です。

Sheet No2※記載例（時給から月給）
B1: キャリアアップ助成金正社員化コース 賃金上昇要件確認ツール （通常の計算方法）
A2: 名 前 （雇用保険被保険者番号） | C2: 厚労 太郎
C3: 1111-111111-1
A4: 転換または直接雇用前６か月（A）
A5: 賃金算定期間 | C5: 10 | D5: 月 | E5: 1 | F5: 日 | J5: 11 | K5: 月 | L5: 1 | M5: 日 | Q5: 12 | R5: 月 | S5: 1 | T5: 日 | X5: 1 | Y5: 月 | Z5: 1 | AA5: 日 | AE5: 2 | AF5: 月 | AG5: 1 | AH5: 日 | AL5: 3 | AM5: 月 | AN5: 1 | AO5: 日 | AS5: 合 計
E6: ～ | F6: 10 | G6: 月 | H6: 31 | I6: 日 | L6: ～ | M6: 11 | N6: 月 | O6: 30 | P6: 日 | S6: ～ | T6: 12 | U6: 月 | V6: 31 | W6: 日 | Z6: ～ | AA6: 1 | AB6: 月 | AC6: 31 | AD6: 日 | AG6: ～ | AH6: 2 | AI6: 月 | AJ6: 28 | AK6: 日 | AN6: ～ | AO6: 3 | AP6: 月 | AQ6: 31 | AR6: 日
A7: 1月の月平均所定労働時間（※） | C7: 120 | J7: 130 | Q7: 125 | X7: 115 | AE7: 120 | AL7: 115 | AS7: =SUM(C7:AR7) -> 725
A8: 基本賃金 | C8: 120000 | J8: 130000 | Q8: 125000 | X8: 115000 | AE8: 120000 | AL8: 115000 | AS8: =SUM(C8:AR8) -> 725000
A9: 手 当 | B9: 手当 | AS9: 0
B10: 手当 | AS10: =SUM(C10:AR10) -> 0
B11: 手当 | AS11: 0
B12: 手当 | AS12: 0
B13: 手当 | AS13: 0
B14: 手当 | AS14: 0
B15: 手当 | AS15: =SUM(C15:AR15) -> 0
B16: 手当 | AS16: 0
B17: 手当 | AS17: 0
B18: 手当 | AS18: 0
A19: 合 計 | C19: =SUM(C8:I18) -> 120000 | J19: =SUM(J8:P18) -> 130000 | Q19: =SUM(Q8:W18) -> 125000 | X19: =SUM(X8:AD18) -> 115000 | AE19: =SUM(AE8:AK18) -> 120000 | AL19: =SUM(AL8:AR18) -> 115000 | AS19: =SUM(C19:AR19) -> 725000
AE21: 転換前1時間あたり賃金→ | AS21: =IFERROR(ROUNDUP(AS19/AS7,0),0) -> 1000
A22: 転換または直接雇用後６か月（B）
A23: 賃金算定期間 | C23: 4 | D23: 月 | E23: 1 | F23: 日 | J23: 5 | K23: 月 | L23: 1 | M23: 日 | Q23: 6 | R23: 月 | S23: 1 | T23: 日 | X23: 7 | Y23: 月 | Z23: 1 | AA23: 日 | AE23: 8 | AF23: 月 | AG23: 1 | AH23: 日 | AL23: 9 | AM23: 月 | AN23: 1 | AO23: 日 | AS23: 合 計
E24: ～ | F24: 4 | G24: 月 | H24: 30 | I24: 日 | L24: ～ | M24: 5 | N24: 月 | O24: 31 | P24: 日 | S24: ～ | T24: 6 | U24: 月 | V24: 30 | W24: 日 | Z24: ～ | AA24: 7 | AB24: 月 | AC24: 31 | AD24: 日 | AG24: ～ | AH24: 8 | AI24: 月 | AJ24: 31 | AK24: 日 | AN24: ～ | AO24: 9 | AP24: 月 | AQ24: 30 | AR24: 日
A25: 1月の月平均所定労働時間（※） | C25: 173.33 | J25: 173.33 | Q25: 173.33 | X25: 173.33 | AE25: 173.33 | AL25: 173.33 | AS25: =SUM(C25:AR25) -> 1039.98
A26: 基本賃金 | C26: 240000 | J26: 240000 | Q26: 240000 | X26: 240000 | AE26: 240000 | AL26: 240000 | AS26: =SUM(C26:AR26) -> 1440000
A27: 手 当 | B27: 手当 | AS27: 0
B28: 手当 | AS28: 0
B29: 手当 | AS29: 0
B30: 手当 | AS30: 0
B31: 手当 | AS31: 0
B32: 手当 | AS32: 0
B33: 手当 | AS33: 0
B34: 手当 | AS34: 0
B35: 手当 | AS35: 0
B36: 手当 | AS36: 0
A37: 合 計 | C37: =SUM(C26:I36) -> 240000 | J37: =SUM(J26:P36) -> 240000 | Q37: =SUM(Q26:W36) -> 240000 | X37: =SUM(X26:AD36) -> 240000 | AE37: =SUM(AE26:AK36) -> 240000 | AL37: =SUM(AL26:AR36) -> 240000 | AS37: =SUM(C37:AR37) -> 1440000
A38: ※ 時給制または日給制であり、シフト制など月の所定労働時間または所定労働日数がない場合のみ、実労働時間を記載してください。
A39: ※ １年単位の変形労働時間制を適用している場合は、監督署に届け出られた年間カレンダー等により、年単位の休日等を元に月平均の所定労働時間を記載してください。
A40: ※ １か月単位の変形労働時間制を適用している場合は、月単位の勤務シフト表や会社カレンダーにより、月ごとの所定労働時間を記載してください。
A41: ※ 転換後「基本給＋諸手当」が低下しているまたは増加していない場合は、支給対象にならない場合があります。
AE42: 転換後1時間あたり賃金→ | AS42: =IFERROR(ROUNDUP(AS37/AS25,0),0) -> 1385
K46: （B） | T46: （A）
AN47: 賃金上昇率
K48: =AS42 -> 1385 | R48: － | T48: =AS21 -> 1000 | AN48: =IFERROR(INT((K48-T48)/K51*100),0) -> 38
AC49: × 100 | AJ49: ＝
K51: =AS21 -> 1000
AE53: ※小数点以下切捨で３％以上の増額が必要です。

Sheet 増額要件に算入できない手当
